fUSD/lending_fUSD_20240523
["ID","MTS","AMOUNT","RATE_DAILY","PERIOD"]
[327792713,1716486999492,500.0,0.00023965,2]
[327792714,1716486999831,500.0,0.00023965,2]
[327792715,1716486999883,500.0,0.00023695,2]
[327792716,1716487000113,500.0,0.00024239,2]
[327792717,1716487000172,500.0,0.00024239,2]
[327792718,1716487000223,500.0,0.00023969,2]
[327792719,1716487000427,500.0,0.00024243,2]
[327792720,1716487001815,756.13,0.00023999,2]
[327792721,1716487001947,500.0,0.00023695,2]
[327792722,1716487002919,500.0,0.00023969,2]
[327792723,1716487002972,756.13,0.00024273,2]
[327792724,1716487003446,500.0,0.00023693,2]
[327792725,1716487003514,500.0,0.00024243,2]
[327792726,1716487003582,500.0,0.00023967,2]
[327792727,1716487003812,500.0,0.00024241,2]
[327792728,1716487004796,40331.824692,0.00024495,2]
[327792729,1716487005660,638.7,0.00023691,2]
[327792730,1716487005968,638.7,0.00023965,2]
[327792731,1716487006250,638.7,0.00024239,2]
[327792732,1716487008506,500.0,0.00023695,2]
[327792733,1716487008801,500.0,0.00023969,2]
[327792734,1716487009092,500.0,0.00024243,2]
[327792735,1716487013885,500.0,0.00023999,2]
[327792736,1716487014239,500.0,0.00024273,2]
[327792737,1716487016945,546.39,0.00023691,2]
[327792738,1716487017073,500.0,0.00023693,2]
[327792739,1716487017227,546.39,0.00023965,2]
[327792740,1716487017388,500.0,0.00023967,2]
[327792741,1716487017484,546.39,0.00024239,2]
[327792742,1716487018118,500.0,0.00024241,2]
[327792743,1716487022031,892.94,0.00023999,2]
[327792744,1716487022330,892.94,0.00024273,2]
[327792745,1716487027753,1008.09,0.00023691,2]
[327792746,1716487027802,500.0,0.00023695,2]
[327792747,1716487027854,1008.09,0.00023965,2]
[327792748,1716487028120,1008.09,0.00024239,2]
[327792749,1716487028228,500.0,0.00023969,2]
[327792750,1716487028517,500.0,0.00024243,2]
[327792751,1716487029331,500.0,0.00023691,2]
[327792752,1716487030168,500.0,0.00023965,2]
[327792753,1716487030778,500.0,0.00024239,2]
[327792754,1716487032612,500.0,0.00023695,2]
[327792755,1716487032819,500.0,0.00023999,2]
[327792756,1716487032889,500.0,0.00023969,2]
[327792757,1716487033119,500.0,0.00024273,2]
[327792758,1716487033180,500.0,0.00024243,2]
[327792759,1716487035923,2000.0,0.00023648,2]
[327792760,1716487037923,671.78,0.00023691,2]
[327792761,1716487038212,671.78,0.00023965,2]
[327792762,1716487038487,152.40666744,0.00022851,2]
[327792763,1716487038539,671.78,0.00024239,2]
[327792764,1716487038716,1415.7,0.00023695,2]
[327792765,1716487039012,1415.7,0.00023969,2]
[327792766,1716487039307,1415.7,0.00024243,2]
[327792767,1716487039540,152.40666744,0.0002436,2]
[327792768,1716487040584,500.0,0.00023691,2]
[327792769,1716487040672,500.0,0.00023693,2]
[327792770,1716487040852,500.0,0.00023965,2]
[327792771,1716487040950,500.0,0.00023967,2]
[327792772,1716487041168,500.0,0.00024239,2]
[327792773,1716487041226,500.0,0.00024241,2]
[327792774,1716487042213,500.0,0.00023999,2]
[327792775,1716487042510,500.0,0.00024273,2]
[327792776,1716487044155,906.82776493,0.00024,2]
[327792777,1716487046829,534.61,0.00023693,2]
[327792778,1716487047109,534.61,0.00023967,2]
[327792779,1716487047374,534.61,0.00024241,2]
[327792780,1716487048076,500.0,0.00023691,2]
[327792781,1716487048341,230.43475094,0.00023965,2]
[327792782,1716487048447,500.0,0.00023999,2]
[327792783,1716487048982,500.0,0.00024273,2]
[327792784,1716487053835,156.04052421,0.00022044,2]
[327792785,1716487054340,156.04052421,0.00023944,2]
[327792786,1716487055504,155.34530804,0.0002303,2]
[327792787,1716487055983,165.43186829,0.00023639,2]
[327792788,1716487058970,500.0,0.00023691,2]
[327792789,1716487059224,500.0,0.00023965,2]
[327792790,1716487059829,500.0,0.00024239,2]
[327792791,1716487060370,967.54,0.00023693,2]
[327792792,1716487060640,967.54,0.00023967,2]
[327792793,1716487061301,967.54,0.00024241,2]
[327792794,1716487063527,500.0,0.00023691,2]
[327792795,1716487063583,757.21,0.00023999,2]
[327792796,1716487063789,500.0,0.00023965,2]
[327792797,1716487064079,500.0,0.00024239,2]
[327792798,1716487064181,757.21,0.00024273,2]
[327792799,1716487065168,189.0,0.000245,7]
[327792800,1716487068756,500.0,0.00023691,2]
[327792801,1716487069031,500.0,0.00023965,2]
[327792802,1716487069132,1612.44,0.00023691,2]
[327792803,1716487069289,500.0,0.00024239,2]
[327792804,1716487069407,1612.44,0.00023965,2]
[327792805,1716487069673,1612.44,0.00024239,2]
[327792806,1716487069951,500.0,0.00023693,2]
[327792807,1716487070272,500.0,0.00023967,2]
[327792808,1716487070582,500.0,0.00024241,2]
[327792809,1716487075240,500.0,0.00023999,2]
[327792810,1716487075493,500.0,0.00024273,2]
[327792811,1716487075579,500.0,0.00023691,2]
[327792812,1716487075938,500.0,0.00023965,2]
[327792813,1716487076228,500.0,0.00024239,2]
[327792814,1716487080039,500.0,0.00023695,2]
[327792815,1716487080375,625.16532787,0.00023969,2]
[327792816,1716487083162,760.36,0.00023695,2]
[327792817,1716487083651,760.36,0.00023969,2]
[327792818,1716487083759,760.36,0.00024243,2]
[327792819,1716487084820,500.0,0.00023999,2]
[327792820,1716487085094,500.0,0.00024273,2]
[327792821,1716487088291,500.0,0.00023691,2]
[327792822,1716487088612,500.0,0.00023965,2]
[327792823,1716487088935,500.0,0.00024239,2]
[327792824,1716487091155,2402.72,0.00023697,2]
[327792825,1716487091433,2402.72,0.00023971,2]
[327792826,1716487091691,2402.72,0.00024245,2]
[327792827,1716487092421,500.0,0.00023999,2]
[327792828,1716487093002,500.0,0.00024273,2]
[327792829,1716487097630,500.0,0.00023693,2]
[327792830,1716487097925,500.0,0.00023967,2]
[327792831,1716487098211,500.0,0.00024241,2]
[327792832,1716487099846,500.0,0.00023999,2]
[327792833,1716487100130,500.0,0.00024273,2]
[327792834,1716487104433,500.0,0.00023691,2]
[327792835,1716487104742,500.0,0.00023965,2]
[327792836,1716487105017,500.0,0.00024239,2]
[327792837,1716487105557,4947.43,0.00023999,2]
[327792838,1716487105828,500.0,0.00023691,2]
[327792839,1716487105954,4947.43,0.00024273,2]
[327792840,1716487106122,500.0,0.00023965,2]
[327792841,1716487106397,500.0,0.00024239,2]
[327792842,1716487111698,797.78,0.00023691,2]
[327792843,1716487112001,797.78,0.00023965,2]
[327792844,1716487112414,797.78,0.00024239,2]
[327792845,1716487116461,156.5,0.00023845,2]
[327792846,1716487116601,500.0,0.00023999,2]
[327792847,1716487116714,156.5,0.00023914,2]
[327792848,1716487116910,337.39449334,0.00024273,2]
[327792849,1716487116976,156.5,0.00023983,2]
[327792850,1716487117221,156.5,0.00024052,2]
[327792851,1716487117645,156.5,0.00024121,2]
[327792852,1716487117920,156.5,0.0002419,2]
[327792853,1716487118191,156.5,0.00024259,2]
[327792854,1716487118444,156.5,0.00024328,2]
[327792855,1716487118675,156.5,0.00024397,2]
[327792856,1716487118896,156.5,0.00024466,2]
[327792857,1716487129050,500.0,0.00023693,2]
[327792858,1716487129339,500.0,0.00023967,2]
[327792859,1716487129621,500.0,0.00024241,2]
[327792860,1716487132899,1250.34,0.00023691,2]
[327792861,1716487133167,1250.34,0.00023965,2]
[327792862,1716487133446,1250.34,0.00024239,2]
[327792863,1716487135334,1728.43,0.00023691,2]
[327792864,1716487135447,500.0,0.00023693,2]
[327792865,1716487135608,1728.43,0.00023965,2]
[327792866,1716487135719,500.0,0.00023967,2]
[327792867,1716487136114,1728.43,0.00024239,2]
[327792868,1716487136185,500.0,0.00024241,2]
[327792869,1716487144536,500.0,0.00023693,2]
[327792870,1716487144824,500.0,0.00023967,2]
[327792871,1716487145216,500.0,0.00024241,2]
[327792872,1716487146929,500.0,0.00023691,2]
[327792873,1716487147228,500.0,0.00023965,2]
[327792874,1716487147849,500.0,0.00024239,2]
[327792875,1716487148603,4812.57,0.00023693,2]
[327792876,1716487148895,4812.57,0.00023967,2]
[327792877,1716487149183,4812.57,0.00024241,2]
[327792878,1716487163277,555.09088564,0.00023691,2]
[327792879,1716487163743,630.22,0.00023695,2]
[327792880,1716487164011,630.22,0.00023969,2]
[327792881,1716487164277,630.22,0.00024243,2]
[327792882,1716487176629,150.0,0.000245,4]
[327792883,1716487180032,741.46,0.00021722,2]
[327792884,1716487180084,500.0,0.00023691,2]
[327792885,1716487180243,741.46,0.00023986,2]
[327792886,1716487180870,500.0,0.00023965,2]
[327792887,1716487180935,500.0,0.00024239,2]
[327792888,1716487181152,500.0,0.00023693,2]
[327792889,1716487181451,500.0,0.00023967,2]
[327792890,1716487182882,500.0,0.00024241,2]
[327792891,1716487183558,614.02425136,0.00023691,2]
[327792892,1716487184285,845.24,0.00023691,2]
[327792893,1716487184578,845.24,0.00023965,2]
[327792894,1716487184860,845.24,0.00024239,2]
[327792895,1716487185822,500.0,0.00023691,2]
[327792896,1716487186113,500.0,0.00023965,2]
[327792897,1716487186464,500.0,0.00024239,2]
[327792898,1716487192586,831.36276449,0.00024238,2]
[327792899,1716487192637,500.0,0.00023691,2]
[327792900,1716487193010,500.0,0.00023965,2]
[327792901,1716487193786,500.0,0.00024239,2]
[327792902,1716487200550,500.0,0.00023691,2]
[327792903,1716487200873,500.0,0.00023965,2]
[327792904,1716487201495,500.0,0.00024239,2]
[327792905,1716487207147,2000.0,0.000245,2]
[327792906,1716487212218,200.0,0.000245,2]
[327792907,1716487214175,291.75940365,0.00023999,2]
[327792908,1716487218298,10164.4438007,0.00024493,2]
[327792909,1716487222758,500.0,0.00023691,2]
[327792910,1716487223048,500.0,0.00023965,2]
[327792911,1716487223338,500.0,0.00024239,2]
[327792912,1716487223949,500.0,0.00023691,2]
[327792913,1716487224246,500.0,0.00023965,2]
[327792914,1716487224533,500.0,0.00024239,2]
[327792915,1716487227690,500.0,0.00023691,2]
[327792916,1716487227979,500.0,0.00023965,2]
[327792917,1716487228237,338.9599818,0.00024239,2]
[327792918,1716487230525,500.0,0.00023999,2]
[327792919,1716487232046,500.0,0.00024273,2]
[327792920,1716487234490,500.0,0.00023691,2]
[327792921,1716487234801,500.0,0.00023965,2]
[327792922,1716487235113,500.0,0.00024239,2]
[327792923,1716487239984,500.0,0.00023691,2]
[327792924,1716487240261,609.20039513,0.00023965,2]
[327792925,1716487241804,500.0,0.00023693,2]
[327792926,1716487242903,500.0,0.00023967,2]
[327792927,1716487243604,500.0,0.00024241,2]
[327792928,1716487244101,500.0,0.00023691,2]
[327792929,1716487244391,500.0,0.00023965,2]
[327792930,1716487244635,500.0,0.00024239,2]
[327792931,1716487248711,500.0,0.00023693,2]
[327792932,1716487248999,500.0,0.00023967,2]
[327792933,1716487249636,500.0,0.00024241,2]
[327792934,1716487254000,500.0,0.00023693,2]
[327792935,1716487254269,535.86945687,0.00023967,2]
[327792936,1716487257464,619.18600079,0.00023691,2]
[327792937,1716487258946,558.86,0.00023999,2]
[327792938,1716487259240,558.86,0.00024273,2]
[327792939,1716487259411,1238.74,0.00023693,2]
[327792940,1716487259719,1238.74,0.00023967,2]
[327792941,1716487260572,1238.74,0.00024241,2]
[327792942,1716487261708,500.0,0.00023691,2]
[327792943,1716487262010,500.0,0.00023965,2]
[327792944,1716487262278,500.0,0.00024239,2]
[327792945,1716487268819,500.0,0.00023999,2]
[327792946,1716487269118,592.78,0.00024273,2]
[327792947,1716487271728,882.08,0.00023999,2]
[327792948,1716487272015,882.08,0.00024273,2]
[327792949,1716487272073,500.0,0.00023691,2]
[327792950,1716487272394,500.0,0.00023965,2]
[327792951,1716487272652,500.0,0.00024239,2]
[327792952,1716487278967,846.6,0.00023691,2]
[327792953,1716487279286,846.6,0.00023965,2]
[327792954,1716487279892,846.6,0.00024239,2]
[327792955,1716487281963,587.81,0.00023999,2]
[327792956,1716487282254,587.81,0.00024273,2]
[327792957,1716487285595,500.0,0.00023795,2]
[327792958,1716487285881,500.0,0.00024069,2]
[327792959,1716487286167,500.0,0.00024343,2]
[327792960,1716487288965,250.0,0.00023642,2]
[327792961,1716487292191,2750.0,0.00021,2]
[327792962,1716487292894,500.0,0.00023691,2]
[327792963,1716487293163,500.0,0.00023965,2]
[327792964,1716487293312,2800.0,0.00023,2]
[327792965,1716487293460,500.0,0.00024239,2]
[327792966,1716487300101,665.32,0.00023693,2]
[327792967,1716487300398,665.32,0.00023967,2]
[327792968,1716487300658,665.32,0.00024241,2]
[327792969,1716487303548,500.0,0.00023999,2]
[327792970,1716487303839,500.0,0.00024273,2]
[327792971,1716487311063,1410.89,0.00023999,2]
[327792972,1716487311675,1410.89,0.00024273,2]
[327792973,1716487317307,500.0,0.00023691,2]
[327792974,1716487317966,317.60406638,0.00023965,2]
[327792975,1716487318292,500.0,0.00023691,2]
[327792976,1716487318576,500.0,0.00023965,2]
[327792977,1716487318864,500.0,0.00024239,2]
[327792978,1716487336886,500.0,0.00023695,2]
[327792979,1716487337172,500.0,0.00023969,2]
[327792980,1716487337472,500.0,0.00024243,2]
[327792981,1716487337905,152.40666745,0.00023647,2]
[327792982,1716487338413,152.40666745,0.00023886,2]
[327792983,1716487340619,500.0,0.00023691,2]
[327792984,1716487340803,500.0,0.00023965,2]
[327792985,1716487341078,500.0,0.00024239,2]
[327792986,1716487343604,500.0,0.00023691,2]
[327792987,1716487343881,908.96,0.00023633,2]
[327792988,1716487343934,500.0,0.00023965,2]
[327792989,1716487344202,500.0,0.00024239,2]
[327792990,1716487347890,500.0,0.00023691,2]
[327792991,1716487348170,500.0,0.00023965,2]
[327792992,1716487348463,500.0,0.00024239,2]
[327792993,1716487352150,29012.4883904,0.00024492,2]
[327792994,1716487356416,500.0,0.00023691,2]
[327792995,1716487356737,500.0,0.00023965,2]
[327792996,1716487357046,500.0,0.00024239,2]
[327792997,1716487360027,4211.0,0.00023691,2]
[327792998,1716487360348,603.02,0.00023691,2]
[327792999,1716487360403,4211.0,0.00023965,2]
[327793000,1716487360664,4211.0,0.00024239,2]
[327793001,1716487360949,603.02,0.00023965,2]
[327793002,1716487361004,2115.0,0.000245,2]
[327793003,1716487361109,603.02,0.00024239,2]
[327793004,1716487361273,2000.0,0.00024,2]
[327793005,1716487361609,609.6,0.00023637,2]
[327793006,1716487361911,2000.0,0.00024,2]
[327793007,1716487375086,500.0,0.00023695,2]
[327793008,1716487375749,500.0,0.00023969,2]
[327793009,1716487376022,500.0,0.00024243,2]
[327793010,1716487376573,224.31784017,0.00023695,2]
[327793011,1716487391214,472.45726553,0.00024,2]
[327793012,1716487392489,500.0,0.00023999,2]
[327793013,1716487392772,500.0,0.00024273,2]
[327793014,1716487396400,500.0,0.00023691,2]
[327793015,1716487396713,500.0,0.00023965,2]
[327793016,1716487396999,500.0,0.00024239,2]
[327793017,1716487398301,500.0,0.00023695,2]
[327793018,1716487398586,500.0,0.00023969,2]
[327793019,1716487398853,599.8746067,0.00024243,2]
[327793020,1716487418008,684.53,0.00023695,2]
[327793021,1716487418303,684.53,0.00023969,2]
[327793022,1716487418515,150.0,0.000245,2]
[327793023,1716487418603,684.53,0.00024243,2]
[327793024,1716487425920,500.0,0.00023695,2]
[327793025,1716487426093,178.75,0.00023647,2]
[327793026,1716487426196,500.0,0.00023969,2]
[327793027,1716487426512,500.0,0.00024243,2]
[327793028,1716487450886,371.83780942,0.00023695,2]
[327793029,1716487454778,500.0,0.00023691,2]
[327793030,1716487454934,279.45384715,0.00023691,2]
[327793031,1716487455159,607.26021059,0.00023965,2]
[327793032,1716487463184,1083.9,0.00023691,2]
[327793033,1716487463513,1083.9,0.00023965,2]
[327793034,1716487463830,1083.9,0.00024239,2]
[327793035,1716487465396,500.0,0.00023999,2]
[327793036,1716487465595,663.44,0.00023695,2]
[327793037,1716487465655,500.0,0.00024273,2]
[327793038,1716487465869,663.44,0.00023969,2]
[327793039,1716487466122,663.44,0.00024243,2]
[327793040,1716487484745,518.75711864,0.00023691,2]
[327793041,1716487496147,500.0,0.00023695,2]
[327793042,1716487496468,500.0,0.00023969,2]
[327793043,1716487496740,500.0,0.00024243,2]
[327793044,1716487503021,433.1400003,0.00024,2]
[327793045,1716487503344,582.15,0.00023691,2]
[327793046,1716487503684,582.15,0.00023965,2]
[327793047,1716487503942,582.15,0.00024239,2]
[327793048,1716487504327,2000.0,0.000245,2]
[327793049,1716487509236,200.0,0.000245,2]
[327793050,1716487510607,500.0,0.00023999,2]
[327793051,1716487510915,500.0,0.00024273,2]
[327793052,1716487529918,500.0,0.00023999,2]
[327793053,1716487530399,500.0,0.00024273,2]
[327793054,1716487553745,2000.0,0.0002368,2]
[327793055,1716487555478,500.0,0.00023999,2]
[327793056,1716487555752,500.0,0.00024273,2]
[327793057,1716487581540,500.0,0.00023999,2]
[327793058,1716487581816,500.0,0.00024273,2]
[327793059,1716487585691,500.0,0.00023999,2]
[327793060,1716487585978,500.0,0.00024273,2]
[327793061,1716487594434,369.0413881,0.00023999,2]
[327793062,1716487594954,7197.9091236,0.00024495,2]
[327793063,1716487597702,3684.62,0.00023999,2]
[327793064,1716487597989,3684.62,0.00024273,2]
[327793065,1716487607359,156.5,0.00023868,2]
[327793066,1716487607606,156.5,0.00024024,2]
[327793067,1716487607839,156.5,0.00024179,2]
[327793068,1716487608096,156.5,0.00024335,2]
[327793069,1716487608362,156.5,0.0002449,2]
[327793070,1716487624737,3615.6437527,0.00022152,2]
[327793165,1716487637315,152.55876991,0.00022364,2]
[327793189,1716487637822,152.55876991,0.00022766,2]
[327793431,1716487647325,500.0,0.00023691,2]
[327793432,1716487647619,500.0,0.00023965,2]
[327793433,1716487648421,500.0,0.00024239,2]
[327793434,1716487649331,154.03762697,0.00023792,2]
[327793435,1716487653347,210.86367181,0.0002204,2]
[327793436,1716487655418,165.43186829,0.00022412,2]
[327793437,1716487656198,153.32653871,0.00022258,2]
[327793438,1716487656793,2102.38,0.00023691,2]
[327793439,1716487657072,2102.38,0.00023965,2]
[327793440,1716487657364,2102.38,0.00024239,2]
[327793441,1716487658282,667.31,0.00021758,2]
[327793442,1716487658551,667.31,0.00024022,2]
[327793443,1716487693196,167.24,0.00013973,2]
[327793444,1716487709756,472.45726553,0.00024,2]
[327793445,1716487711874,948.41,0.00023999,2]
[327793446,1716487712179,948.41,0.00024273,2]
[327793447,1716487729944,20771.6493718,0.00024491,2]
[327793448,1716487751850,509.38,0.00023999,2]
[327793449,1716487752126,509.38,0.00024273,2]
[327793450,1716487775921,150.0,0.000245,4]
[327793452,1716487804915,2000.0,0.000245,2]
[327793453,1716487808983,200.0,0.000245,2]
[327793454,1716487823830,605.64,0.00023647,2]
[327793464,1716487834341,-472.45726553,0.00024509,2]
[327793466,1716487834351,-500.0,0.00024511,2]
[327793467,1716487834362,-500.0,0.00024511,2]
[327793468,1716487834372,-500.0,0.00024513,2]
[327793470,1716487834382,-500.0,0.00024513,2]
[327793472,1716487834392,-500.0,0.00024513,2]
[327793473,1716487834402,-500.0,0.00024513,2]
[327793474,1716487834412,-603.02,0.00024513,2]
[327793475,1716487834421,-500.0,0.00024513,2]
[327793476,1716487834431,-1043.57255206,0.00024516,2]
[327793477,1716487834440,-165.0,0.00024517,2]
[327793478,1716487834449,-3814.0,0.00024517,2]
[327793479,1716487834459,-500.0,0.00024517,2]
[327793480,1716487834468,-500.0,0.00024517,2]
[327793481,1716487834478,-500.0,0.00024517,2]
[327793482,1716487834489,-500.0,0.00024517,2]
[327793483,1716487834499,-630.22,0.00024517,2]
[327793484,1716487834509,-500.0,0.00024517,2]
[327793485,1716487834518,-500.0,0.00024517,2]
[327793486,1716487834528,-142.45439071,0.00024517,2]
[327793487,1716487834566,-542.07560929,0.00024517,2]
[327793488,1716487834575,-224.79615075,0.00024517,2]
[327793489,1716487834586,-663.44,0.00024517,2]
[327793490,1716487834596,-500.0,0.00024517,2]
[327793491,1716487834605,-800.0,0.00024521,2]
[327793492,1716487834614,-177.68823996,0.00024547,2]
[327793493,1716487834626,-770.72176004,0.00024547,2]
[327793494,1716487834635,-509.38,0.00024547,2]
[327793495,1716487834644,-413.67666196,0.00024594,2]
[327793496,1716487834655,-1786.32333804,0.00024594,2]
[327793497,1716487834664,-500.0,0.00024594,2]
[327793498,1716487834674,-591.25372852,0.00024599,2]
[327793499,1716487834686,-5463.03577148,0.00024599,2]
[327793500,1716487834695,-9113.01721358,0.000246,14]
[327793501,1716487834705,-2882.3031548,0.000246,2]
[327793502,1716487834714,-166.74979688,0.000246,2]
[327793503,1716487834724,-415.6,0.000246,2]
[327793504,1716487834734,-30176.793,0.000246,2]
[327793505,1716487834743,-326.6827074,0.000246,2]
[327793506,1716487834752,-3919.06995873,0.000246,2]
[327793507,1716487834762,-150.48530496,0.000246,2]
[327793508,1716487834772,-500.0,0.00024617,2]
[327793509,1716487834783,-500.0,0.00024638,2]
[327793510,1716487834793,-156.5,0.00024646,2]
[327793511,1716487834803,-250.0,0.00024658,2]
[327793512,1716487834812,-1455.6029,0.0002468,2]
[327793513,1716487834822,-151.07,0.0002469,2]
[327793514,1716487834832,-500.0,0.00024699,2]
[327793515,1716487834847,-569.28,0.00024699,2]
[327793516,1716487834857,-217.73373263,0.00024699,2]
[327793517,1716487834867,-500.0,0.00024699,2]
[327793518,1716487834877,-500.0,0.00024699,2]
[327793519,1716487834886,-500.0,0.00024699,2]
[327793520,1716487834896,-500.0,0.00024699,2]
[327793521,1716487834906,-500.0,0.00024699,2]
[327793522,1716487834919,-500.0,0.00024699,2]
[327793523,1716487834929,-500.0,0.00024699,2]
[327793524,1716487834939,-500.0,0.00024699,2]
[327793525,1716487834950,-500.0,0.00024699,2]
[327793526,1716487834959,-500.0,0.00024699,2]
[327793527,1716487834969,-500.0,0.00024699,2]
[327793528,1716487834983,-500.0,0.00024699,2]
[327793529,1716487834994,-500.0,0.00024699,2]
[327793530,1716487835004,-608.46785942,0.00024699,2]
[327793531,1716487835014,-500.0,0.00024699,2]
[327793532,1716487835304,-1000.0,0.00024699,2]
[327793533,1716487835314,-500.0,0.00024699,2]
[327793534,1716487835325,-500.0,0.00024699,2]
[327793535,1716487835336,-500.0,0.00024699,2]
[327793536,1716487835345,-500.0,0.00024699,2]
[327793537,1716487835356,-500.0,0.00024699,2]
[327793538,1716487835366,-500.0,0.00024699,2]
[327793539,1716487835376,-737.56,0.00024699,2]
[327793540,1716487835386,-500.0,0.00024699,2]
[327793541,1716487835395,-500.0,0.00024699,2]
[327793542,1716487835405,-500.0,0.00024699,2]
[327793543,1716487835414,-500.0,0.00024699,2]
[327793544,1716487835423,-500.0,0.00024699,2]
[327793545,1716487835433,-500.0,0.00024699,2]
[327793546,1716487835443,-500.0,0.00024699,2]
[327793547,1716487835452,-500.0,0.00024699,2]
[327793548,1716487835462,-586.29312569,0.00024699,2]
[327793549,1716487835472,-500.0,0.00024699,2]
[327793550,1716487835482,-150.0,0.00024699,2]
[327793551,1716487835492,-704.03,0.00024699,2]
[327793552,1716487835501,-500.0,0.00024699,2]
[327793553,1716487835512,-500.0,0.00024699,2]
[327793554,1716487835522,-500.0,0.00024699,2]
[327793555,1716487835531,-698.05,0.00024699,2]
[327793556,1716487835541,-812.52,0.00024699,2]
[327793557,1716487835551,-500.0,0.00024699,2]
[327793558,1716487835561,-500.0,0.00024699,2]
[327793559,1716487835571,-1512.38,0.00024699,2]
[327793560,1716487835581,-500.0,0.00024699,2]
[327793561,1716487835592,-799.66,0.00024699,2]
[327793562,1716487835601,-500.0,0.00024699,2]
[327793563,1716487835611,-500.0,0.00024699,2]
[327793564,1716487835620,-500.0,0.00024699,2]
[327793565,1716487835630,-500.0,0.00024699,2]
[327793566,1716487835642,-500.0,0.00024699,2]
[327793567,1716487835651,-500.0,0.00024699,2]
[327793568,1716487835661,-616.31,0.00024699,2]
[327793569,1716487835671,-199.63769105,0.00024699,2]
[327793570,1716487835681,-500.0,0.00024699,2]
[327793571,1716487835691,-500.0,0.00024699,2]
[327793572,1716487835701,-500.0,0.00024699,2]
[327793573,1716487835711,-500.0,0.00024699,2]
[327793574,1716487835721,-965.32,0.00024699,2]
[327793575,1716487835730,-500.0,0.00024699,2]
[327793576,1716487835740,-186.36295258,0.00024699,2]
[327793577,1716487835750,-500.0,0.00024699,2]
[327793578,1716487835760,-500.0,0.00024699,2]
[327793579,1716487835769,-500.0,0.00024699,2]
[327793580,1716487835779,-705.74,0.00024699,2]
[327793581,1716487835789,-501.42,0.00024699,2]
[327793582,1716487835798,-500.0,0.00024699,2]
[327793583,1716487835809,-500.0,0.00024699,2]